[Event "Titled Tuesday Blitz July 25 Early 2023"]
[White "Topalov, Aleksandar"]
[Black "Rodriguez Fontecha, Marcos"]
[WhiteFideId "925659"]
[BlackFideId "2256576"]
[WhiteElo "2380"]
[BlackElo "2491"]
[Result "0-1"]
[Round "4"]
[TimeControl "180+2"]
[Date "2023.07.25"]
[WhiteClock "0:00:03"]
[BlackClock "0:00:04"]
[Board "162"]

1. b3 {[%clk 0:03:00]}  e5 {[%clk 0:02:52]} 2. Bb2 {[%clk 0:03:00]}  Nc6 {[%clk 0:02:52]} 3. c4 {[%clk 0:03:00]}  g6 {[%clk 0:02:51]} 4. Nc3 {[%clk 0:02:59]}  Bg7 {[%clk 0:02:52]} 5. g3 {[%clk 0:02:59]}  d6 {[%clk 0:02:52]} 6. Bg2 {[%clk 0:03:00]}  Be6 {[%clk 0:02:52]} 7. a3 {[%clk 0:03:00]}  Qd7 {[%clk 0:02:52]} 8. e3 {[%clk 0:02:59]}  Nge7 {[%clk 0:02:50]} 9. Nd5 {[%clk 0:02:58]}  O-O {[%clk 0:02:45]} 10. Ne2 {[%clk 0:02:58]}  Nd8 {[%clk 0:02:41]} 11. O-O {[%clk 0:02:56]}  c6 {[%clk 0:02:41]} 12. Nxe7+ {[%clk 0:02:56]}  Qxe7 {[%clk 0:02:41]} 13. d4 {[%clk 0:02:55]}  Bg4 {[%clk 0:02:25]} 14. Re1 {[%clk 0:02:45]}  e4 {[%clk 0:02:13]} 15. Qc2 {[%clk 0:02:44]}  d5 {[%clk 0:02:11]} 16. a4 {[%clk 0:02:42]}  Ne6 {[%clk 0:01:56]} 17. Ba3 {[%clk 0:02:42]}  Qg5 {[%clk 0:01:48]} 18. Bxf8 {[%clk 0:02:40]}  Rxf8 {[%clk 0:01:46]} 19. cxd5 {[%clk 0:02:36]}  cxd5 {[%clk 0:01:47]} 20. Nf4 {[%clk 0:02:31]}  h5 {[%clk 0:01:43]} 21. h4 {[%clk 0:02:23]}  Qf5 {[%clk 0:01:39]} 22. Nxe6 {[%clk 0:02:20]}  fxe6 {[%clk 0:01:38]} 23. Ra2 {[%clk 0:02:11]}  g5 {[%clk 0:01:37]} 24. hxg5 {[%clk 0:02:10]}  Qxg5 {[%clk 0:01:38]} 25. Qc7 {[%clk 0:00:51]}  Rf7 {[%clk 0:01:28]} 26. Qb8+ {[%clk 0:00:39]}  Kh7 {[%clk 0:01:26]} 27. Qe8 {[%clk 0:00:33]}  Rf6 {[%clk 0:00:47]} 28. Rc2 {[%clk 0:00:26]}  h4 {[%clk 0:00:42]} 29. Rc7 {[%clk 0:00:19]}  Rg6 {[%clk 0:00:29]} 30. Rf7 {[%clk 0:00:13]}  hxg3 {[%clk 0:00:12]} 31. f4 {[%clk 0:00:12]}  Qh5 {[%clk 0:00:10]} 32. Rf8 {[%clk 0:00:08]}  Bxf8 {[%clk 0:00:07]} 33. Qxf8 {[%clk 0:00:08]}  Qh2+ {[%clk 0:00:07]} 34. Kf1 {[%clk 0:00:08]}  Rg7 {[%clk 0:00:05]} 35. Qf6 {[%clk 0:00:06]}  Bf3 {[%clk 0:00:04]} 36. Bxf3 {[%clk 0:00:03]}  Qf2# {[%clk 0:00:04]} 0-1


[Site "https://www.chess.com"]

[Event "Titled Tuesday Blitz July 25 Early 2023"]
[White "Namitbir Singh Walia"]
[Black "luksona14"]
[WhiteFideId "35071068"]
[WhiteElo "2368"]
[BlackElo "2491"]
[Result "1-0"]
[Round "4"]
[TimeControl "180+2"]
[Date "2023.07.25"]
[WhiteClock "0:00:59"]
[BlackClock "0:01:02"]
[Board "163"]

1. e4 {[%clk 0:03:00]}  c5 {[%clk 0:02:55]} 2. Nf3 {[%clk 0:02:59]}  Nc6 {[%clk 0:02:54]} 3. d4 {[%clk 0:02:59]}  cxd4 {[%clk 0:02:53]} 4. Nxd4 {[%clk 0:03:00]}  Nf6 {[%clk 0:02:53]} 5. Nc3 {[%clk 0:03:00]}  e5 {[%clk 0:02:54]} 6. Ndb5 {[%clk 0:03:00]}  d6 {[%clk 0:02:54]} 7. Bg5 {[%clk 0:03:00]}  a6 {[%clk 0:02:54]} 8. Na3 {[%clk 0:03:01]}  b5 {[%clk 0:02:55]} 9. Nd5 {[%clk 0:03:01]}  Be7 {[%clk 0:02:55]} 10. Bxf6 {[%clk 0:03:02]}  Bxf6 {[%clk 0:02:56]} 11. c3 {[%clk 0:03:03]}  Bg5 {[%clk 0:02:55]} 12. Nc2 {[%clk 0:03:03]}  Rb8 {[%clk 0:02:55]} 13. a4 {[%clk 0:03:03]}  bxa4 {[%clk 0:02:56]} 14. Ncb4 {[%clk 0:03:04]}  Nxb4 {[%clk 0:02:57]} 15. Nxb4 {[%clk 0:03:04]}  Bd7 {[%clk 0:02:54]} 16. Qxd6 {[%clk 0:02:56]}  Be7 {[%clk 0:02:51]} 17. Qxe5 {[%clk 0:02:55]}  O-O {[%clk 0:02:51]} 18. Bxa6 {[%clk 0:02:51]}  Bxb4 {[%clk 0:02:39]} 19. cxb4 {[%clk 0:02:49]}  Rxb4 {[%clk 0:02:39]} 20. O-O {[%clk 0:02:42]}  Re8 {[%clk 0:02:39]} 21. Qd6 {[%clk 0:02:37]}  Rbxe4 {[%clk 0:02:34]} 22. Rad1 {[%clk 0:02:31]}  Qa8 {[%clk 0:02:32]} 23. Bd3 {[%clk 0:02:13]}  R4e7 {[%clk 0:02:23]} 24. Qg3 {[%clk 0:01:59]}  g6 {[%clk 0:02:19]} 25. h4 {[%clk 0:01:52]}  Qb7 {[%clk 0:02:17]} 26. Rd2 {[%clk 0:01:42]}  Bb5 {[%clk 0:02:09]} 27. h5 {[%clk 0:01:32]}  Bxd3 {[%clk 0:01:55]} 28. Qxd3 {[%clk 0:01:33]}  Qb3 {[%clk 0:01:52]} 29. Qxb3 {[%clk 0:01:13]}  axb3 {[%clk 0:01:53]} 30. Rd3 {[%clk 0:01:14]}  Rb8 {[%clk 0:01:53]} 31. Rfd1 {[%clk 0:01:05]}  Re2 {[%clk 0:01:51]} 32. h6 {[%clk 0:01:02]}  f5 {[%clk 0:01:42]} 33. Rd7 {[%clk 0:00:58]}  Rxb2 {[%clk 0:01:02]} 34. Rg7+ {[%clk 0:00:57]}  Kh8 {[%clk 0:01:01]} 35. Rdd7 {[%clk 0:00:57]}  Rb1+ {[%clk 0:01:02]} 36. Kh2 {[%clk 0:00:57]}  b2 {[%clk 0:01:02]} 37. Rxh7+ {[%clk 0:00:58]}  Kg8 {[%clk 0:01:02]} 38. Rdg7+ {[%clk 0:00:59]} 1-0


[Site "https://www.chess.com"]

[Event "Titled Tuesday Blitz July 25 Early 2023"]
[White "Kirillov, Dmitry"]
[Black "Sahil, Tickoo"]
[WhiteFideId "34180572"]
[BlackFideId "5019710"]
[WhiteElo "2485"]
[BlackElo "2362"]
[Result "1/2-1/2"]
[Round "4"]
[TimeControl "180+2"]
[Date "2023.07.25"]
[WhiteClock "0:00:04"]
[BlackClock "0:00:05"]
[Board "164"]

1. Nf3 {[%clk 0:03:00]}  d5 {[%clk 0:02:56]} 2. d4 {[%clk 0:03:00]}  Nf6 {[%clk 0:02:56]} 3. e3 {[%clk 0:02:59]}  c6 {[%clk 0:02:57]} 4. Bd3 {[%clk 0:03:00]}  Bg4 {[%clk 0:02:57]} 5. O-O {[%clk 0:03:01]}  e6 {[%clk 0:02:57]} 6. Nbd2 {[%clk 0:03:01]}  Nbd7 {[%clk 0:02:55]} 7. b3 {[%clk 0:03:01]}  Be7 {[%clk 0:02:53]} 8. Bb2 {[%clk 0:03:01]}  O-O {[%clk 0:02:54]} 9. c4 {[%clk 0:03:02]}  a5 {[%clk 0:02:55]} 10. a3 {[%clk 0:03:01]}  Re8 {[%clk 0:02:54]} 11. h3 {[%clk 0:03:02]}  Bh5 {[%clk 0:02:54]} 12. Qc2 {[%clk 0:03:02]}  Bg6 {[%clk 0:02:54]} 13. Ne5 {[%clk 0:02:56]}  Nxe5 {[%clk 0:02:52]} 14. dxe5 {[%clk 0:02:55]}  Bxd3 {[%clk 0:02:52]} 15. Qxd3 {[%clk 0:02:53]}  Nd7 {[%clk 0:02:53]} 16. f4 {[%clk 0:02:48]}  Nc5 {[%clk 0:02:51]} 17. Qc2 {[%clk 0:02:48]}  dxc4 {[%clk 0:02:49]} 18. Nxc4 {[%clk 0:02:46]}  Qd3 {[%clk 0:02:46]} 19. Qxd3 {[%clk 0:02:40]}  Nxd3 {[%clk 0:02:47]} 20. Rfd1 {[%clk 0:02:37]}  Nxb2 {[%clk 0:02:44]} 21. Nxb2 {[%clk 0:02:38]}  Bc5 {[%clk 0:02:31]} 22. Kf2 {[%clk 0:02:36]}  Red8 {[%clk 0:02:29]} 23. a4 {[%clk 0:02:36]}  Kf8 {[%clk 0:02:15]} 24. Ke2 {[%clk 0:02:36]}  Ke7 {[%clk 0:02:15]} 25. Nc4 {[%clk 0:02:35]}  Bb4 {[%clk 0:02:07]} 26. Rxd8 {[%clk 0:02:28]}  Rxd8 {[%clk 0:02:06]} 27. Rd1 {[%clk 0:02:28]}  Rxd1 {[%clk 0:02:05]} 28. Kxd1 {[%clk 0:02:29]}  f6 {[%clk 0:01:53]} 29. exf6+ {[%clk 0:02:29]}  gxf6 {[%clk 0:01:54]} 30. Ke2 {[%clk 0:02:27]}  b5 {[%clk 0:01:52]} 31. Nb2 {[%clk 0:02:27]}  Ba3 {[%clk 0:01:41]} 32. Nd3 {[%clk 0:02:25]}  bxa4 {[%clk 0:01:41]} 33. bxa4 {[%clk 0:02:24]}  Kd6 {[%clk 0:01:41]} 34. Kd2 {[%clk 0:02:22]}  Kd5 {[%clk 0:01:34]} 35. Kc3 {[%clk 0:02:04]}  Ke4 {[%clk 0:01:21]} 36. Kd2 {[%clk 0:02:04]}  c5 {[%clk 0:01:15]} 37. Nf2+ {[%clk 0:01:59]}  Kd5 {[%clk 0:01:14]} 38. Kd3 {[%clk 0:01:54]}  c4+ {[%clk 0:01:13]} 39. Kc2 {[%clk 0:01:54]}  Bb4 {[%clk 0:01:12]} 40. Ng4 {[%clk 0:01:47]}  f5 {[%clk 0:01:11]} 41. Ne5 {[%clk 0:01:46]}  Bd6 {[%clk 0:01:06]} 42. Nf7 {[%clk 0:01:40]}  Bc5 {[%clk 0:01:04]} 43. Kd2 {[%clk 0:01:35]}  Bb4+ {[%clk 0:00:55]} 44. Kc2 {[%clk 0:01:29]}  Ke4 {[%clk 0:00:50]} 45. Ng5+ {[%clk 0:01:29]}  Kxe3 {[%clk 0:00:50]} 46. Nxe6 {[%clk 0:01:29]}  Kf2 {[%clk 0:00:49]} 47. g4 {[%clk 0:01:29]}  fxg4 {[%clk 0:00:21]} 48. hxg4 {[%clk 0:01:30]}  Kg3 {[%clk 0:00:21]} 49. Ng5 {[%clk 0:00:20]}  Kxg4 {[%clk 0:00:16]} 50. Nxh7 {[%clk 0:00:21]}  Kxf4 {[%clk 0:00:16]} 51. Nf6 {[%clk 0:00:21]}  Ke5 {[%clk 0:00:15]} 52. Nd7+ {[%clk 0:00:19]}  Kd6 {[%clk 0:00:15]} 53. Nf6 {[%clk 0:00:16]}  Kc5 {[%clk 0:00:14]} 54. Ne4+ {[%clk 0:00:13]}  Kd4 {[%clk 0:00:14]} 55. Ng5 {[%clk 0:00:14]}  Be7 {[%clk 0:00:10]} 56. Ne6+ {[%clk 0:00:13]}  Kd5 {[%clk 0:00:08]} 57. Nf4+ {[%clk 0:00:08]}  Kc5 {[%clk 0:00:07]} 58. Kc3 {[%clk 0:00:04]}  Bf6+ {[%clk 0:00:07]} 59. Kc2 {[%clk 0:00:05]}  Be5 {[%clk 0:00:05]} 60. Ng6 {[%clk 0:00:05]}  Bd4 {[%clk 0:00:05]} 61. Nf4 {[%clk 0:00:05]}  Kb4 {[%clk 0:00:04]} 62. Ne6 {[%clk 0:00:06]}  Be3 {[%clk 0:00:04]} 63. Nc7 {[%clk 0:00:05]}  Kxa4 {[%clk 0:00:04]} 64. Nd5 {[%clk 0:00:05]}  Bd4 {[%clk 0:00:03]} 65. Nc7 {[%clk 0:00:04]}  Kb4 {[%clk 0:00:03]} 66. Nd5+ {[%clk 0:00:04]}  Kc5 {[%clk 0:00:03]} 67. Nc7 {[%clk 0:00:02]}  a4 {[%clk 0:00:04]} 68. Ne6+ {[%clk 0:00:03]}  Kb4 {[%clk 0:00:04]} 69. Nxd4 {[%clk 0:00:03]}  c3 {[%clk 0:00:04]} 70. Nc6+ {[%clk 0:00:02]}  Kb5 {[%clk 0:00:05]} 71. Kxc3 {[%clk 0:00:03]}  Kxc6 {[%clk 0:00:05]} 72. Kb4 {[%clk 0:00:03]}  Kb6 {[%clk 0:00:05]} 73. Kxa4 {[%clk 0:00:04]} 1/2-1/2


[Site "https://www.chess.com"]

[Event "Titled Tuesday Blitz July 25 Early 2023"]
[White "Ronka, Erik"]
[Black "Llanos, Guillermo"]
[WhiteFideId "505080"]
[BlackFideId "100358"]
[WhiteElo "2480"]
[BlackElo "2357"]
[Result "0-1"]
[Round "4"]
[TimeControl "180+2"]
[Date "2023.07.25"]
[WhiteClock "0:02:06"]
[BlackClock "0:01:10"]
[Board "166"]

1. e4 {[%clk 0:03:00]}  Nf6 {[%clk 0:03:00]} 2. e5 {[%clk 0:02:58]}  Nd5 {[%clk 0:03:00]} 3. d4 {[%clk 0:02:58]}  d6 {[%clk 0:03:00]} 4. c4 {[%clk 0:02:52]}  Nb6 {[%clk 0:03:00]} 5. f4 {[%clk 0:02:53]}  g6 {[%clk 0:02:58]} 6. Nc3 {[%clk 0:02:52]}  Bg7 {[%clk 0:02:57]} 7. Be3 {[%clk 0:02:52]}  O-O {[%clk 0:02:57]} 8. Nf3 {[%clk 0:02:45]}  Be6 {[%clk 0:02:57]} 9. d5 {[%clk 0:02:44]}  Bg4 {[%clk 0:02:56]} 10. h3 {[%clk 0:02:44]}  Bxf3 {[%clk 0:02:56]} 11. Qxf3 {[%clk 0:02:45]}  dxe5 {[%clk 0:02:55]} 12. O-O-O {[%clk 0:02:45]}  N8d7 {[%clk 0:02:46]} 13. h4 {[%clk 0:02:45]}  exf4 {[%clk 0:02:45]} 14. Bxf4 {[%clk 0:02:45]}  Ne5 {[%clk 0:02:44]} 15. Qe4 {[%clk 0:02:39]}  f5 {[%clk 0:02:23]} 16. Qd4 {[%clk 0:02:38]}  Nexc4 {[%clk 0:02:16]} 17. Qc5 {[%clk 0:02:37]}  Nxb2 {[%clk 0:02:06]} 18. h5 {[%clk 0:02:28]}  Nxd1 {[%clk 0:02:02]} 19. Bxc7 {[%clk 0:02:23]}  Nxc3 {[%clk 0:01:49]} 20. Bxd8 {[%clk 0:02:22]}  Rfxd8 {[%clk 0:01:44]} 21. Qxe7 {[%clk 0:02:17]}  Re8 {[%clk 0:01:41]} 22. Qxb7 {[%clk 0:02:14]}  Nxa2+ {[%clk 0:01:34]} 23. Kd2 {[%clk 0:02:13]}  Rac8 {[%clk 0:01:15]} 24. Bb5 {[%clk 0:02:10]}  Bh6+ {[%clk 0:01:12]} 25. Kd3 {[%clk 0:02:07]}  Nb4+ {[%clk 0:01:11]} 26. Kd4 {[%clk 0:02:06]}  Be3# {[%clk 0:01:10]} 0-1


[Site "https://www.chess.com"]

[Event "Titled Tuesday Blitz July 25 Early 2023"]
[White "Vifleemskaia, Svetlana"]
[Black "Koutlas, Nikolaos"]
[WhiteFideId "4129490"]
[BlackFideId "25827138"]
[WhiteElo "2356"]
[BlackElo "2479"]
[Result "0-1"]
[Round "4"]
[TimeControl "180+2"]
[Date "2023.07.25"]
[WhiteClock "0:00:01"]
[BlackClock "0:00:29"]
[Board "167"]

1. d4 {[%clk 0:02:52]}  Nf6 {[%clk 0:02:58]} 2. c4 {[%clk 0:02:52]}  e6 {[%clk 0:02:57]} 3. Nc3 {[%clk 0:02:51]}  Bb4 {[%clk 0:02:54]} 4. e3 {[%clk 0:02:51]}  Nc6 {[%clk 0:02:52]} 5. Ne2 {[%clk 0:02:49]}  d6 {[%clk 0:02:52]} 6. a3 {[%clk 0:02:49]}  Bxc3+ {[%clk 0:02:52]} 7. Nxc3 {[%clk 0:02:49]}  e5 {[%clk 0:02:53]} 8. d5 {[%clk 0:02:48]}  Ne7 {[%clk 0:02:52]} 9. e4 {[%clk 0:02:46]}  O-O {[%clk 0:02:48]} 10. g3 {[%clk 0:02:44]}  a5 {[%clk 0:02:45]} 11. Bg2 {[%clk 0:02:44]}  Bg4 {[%clk 0:02:44]} 12. Qc2 {[%clk 0:02:38]}  Nd7 {[%clk 0:02:42]} 13. O-O {[%clk 0:02:34]}  f5 {[%clk 0:02:42]} 14. f4 {[%clk 0:02:22]}  Ng6 {[%clk 0:02:33]} 15. h3 {[%clk 0:02:18]}  exf4 {[%clk 0:02:23]} 16. gxf4 {[%clk 0:01:51]}  Bh5 {[%clk 0:02:19]} 17. Be3 {[%clk 0:01:25]}  Qh4 {[%clk 0:02:07]} 18. Qf2 {[%clk 0:01:15]}  Qxf2+ {[%clk 0:02:05]} 19. Rxf2 {[%clk 0:01:08]}  Rae8 {[%clk 0:02:02]} 20. Nb5 {[%clk 0:00:50]}  Rc8 {[%clk 0:01:27]} 21. exf5 {[%clk 0:00:40]}  Rxf5 {[%clk 0:01:23]} 22. Nd4 {[%clk 0:00:40]}  Rf7 {[%clk 0:01:22]} 23. Ne6 {[%clk 0:00:37]}  Ne7 {[%clk 0:01:21]} 24. Be4 {[%clk 0:00:33]}  Nf5 {[%clk 0:01:09]} 25. Bd2 {[%clk 0:00:30]}  Nc5 {[%clk 0:01:04]} 26. Bg2 {[%clk 0:00:19]}  b6 {[%clk 0:00:49]} 27. b4 {[%clk 0:00:08]}  Nb3 {[%clk 0:00:48]} 28. Ra2 {[%clk 0:00:07]}  a4 {[%clk 0:00:38]} 29. Rc2 {[%clk 0:00:02]}  Nfd4 {[%clk 0:00:33]} 30. Rc1 {[%clk 0:00:01]}  Ne2+ {[%clk 0:00:32]} 31. Rxe2 {[%clk 0:00:01]}  Bxe2 {[%clk 0:00:33]} 32. Re1 {[%clk 0:00:01]}  Bxc4 {[%clk 0:00:32]} 33. Bc3 {[%clk 0:00:01]}  c6 {[%clk 0:00:29]} 0-1


[Site "https://www.chess.com"]

[Event "Titled Tuesday Blitz July 25 Early 2023"]
[White "Chitlange Sakshi"]
[Black "TomLiu777"]
[WhiteFideId "35002899"]
[WhiteElo "2479"]
[BlackElo "2355"]
[Result "0-1"]
[Round "4"]
[TimeControl "180+2"]
[Date "2023.07.25"]
[WhiteClock "0:00:05"]
[BlackClock "0:00:02"]
[Board "168"]

1. d4 {[%clk 0:03:00]}  Nf6 {[%clk 0:02:59]} 2. c4 {[%clk 0:02:59]}  c5 {[%clk 0:03:00]} 3. d5 {[%clk 0:02:59]}  e6 {[%clk 0:03:00]} 4. Nc3 {[%clk 0:02:59]}  exd5 {[%clk 0:03:01]} 5. cxd5 {[%clk 0:03:00]}  d6 {[%clk 0:03:02]} 6. Nf3 {[%clk 0:03:00]}  g6 {[%clk 0:03:03]} 7. Bf4 {[%clk 0:03:00]}  Bg7 {[%clk 0:03:03]} 8. e3 {[%clk 0:03:01]}  O-O {[%clk 0:03:03]} 9. h3 {[%clk 0:03:01]}  Na6 {[%clk 0:03:00]} 10. Be2 {[%clk 0:02:56]}  Nc7 {[%clk 0:03:00]} 11. a4 {[%clk 0:02:54]}  a6 {[%clk 0:02:59]} 12. O-O {[%clk 0:02:52]}  Rb8 {[%clk 0:02:59]} 13. Rb1 {[%clk 0:02:29]}  b5 {[%clk 0:02:58]} 14. axb5 {[%clk 0:02:29]}  axb5 {[%clk 0:02:55]} 15. b4 {[%clk 0:02:29]}  Bf5 {[%clk 0:02:41]} 16. Rb3 {[%clk 0:02:13]}  c4 {[%clk 0:02:37]} 17. Ra3 {[%clk 0:02:14]}  Ne4 {[%clk 0:02:22]} 18. Nxe4 {[%clk 0:01:47]}  Bxe4 {[%clk 0:02:23]} 19. Ng5 {[%clk 0:01:45]}  Bxd5 {[%clk 0:02:22]} 20. e4 {[%clk 0:01:36]}  h6 {[%clk 0:02:16]} 21. exd5 {[%clk 0:01:13]}  hxg5 {[%clk 0:02:15]} 22. Be3 {[%clk 0:01:09]}  Ra8 {[%clk 0:02:15]} 23. Rxa8 {[%clk 0:01:06]}  Qxa8 {[%clk 0:02:15]} 24. Bxg5 {[%clk 0:01:04]}  Qxd5 {[%clk 0:02:13]} 25. Be7 {[%clk 0:00:49]}  Re8 {[%clk 0:02:11]} 26. Bxd6 {[%clk 0:00:48]}  Qxd1 {[%clk 0:02:04]} 27. Bxd1 {[%clk 0:00:47]}  Nd5 {[%clk 0:01:39]} 28. Bf3 {[%clk 0:00:46]}  Rd8 {[%clk 0:01:38]} 29. Bc5 {[%clk 0:00:41]}  Nf4 {[%clk 0:01:18]} 30. Bc6 {[%clk 0:00:34]}  Ne2+ {[%clk 0:01:11]} 31. Kh1 {[%clk 0:00:31]}  Nc3 {[%clk 0:01:12]} 32. Re1 {[%clk 0:00:25]}  Rd2 {[%clk 0:01:03]} 33. Re8+ {[%clk 0:00:22]}  Kh7 {[%clk 0:01:03]} 34. Re7 {[%clk 0:00:20]}  Nd1 {[%clk 0:00:25]} 35. Rxf7 {[%clk 0:00:20]}  c3 {[%clk 0:00:25]} 36. Bf8 {[%clk 0:00:19]}  c2 {[%clk 0:00:26]} 37. Rxg7+ {[%clk 0:00:19]}  Kh8 {[%clk 0:00:24]} 38. Bd5 {[%clk 0:00:11]}  Rxd5 {[%clk 0:00:11]} 39. Rc7 {[%clk 0:00:11]}  Nc3 {[%clk 0:00:08]} 40. Bh6 {[%clk 0:00:05]}  Rd1+ {[%clk 0:00:05]} 41. Kh2 {[%clk 0:00:05]}  c1=Q {[%clk 0:00:05]} 42. Bxc1 {[%clk 0:00:03]}  Rxc1 {[%clk 0:00:06]} 43. h4 {[%clk 0:00:02]}  Ne2 {[%clk 0:00:06]} 44. Rb7 {[%clk 0:00:02]}  Nd4 {[%clk 0:00:05]} 45. Rd7 {[%clk 0:00:02]}  Rc4 {[%clk 0:00:05]} 46. g4 {[%clk 0:00:01]}  Rxb4 {[%clk 0:00:05]} 47. Kg3 {[%clk 0:00:01]}  Rc4 {[%clk 0:00:04]} 48. Kf4 {[%clk 0:00:02]}  Ne2+ {[%clk 0:00:03]} 49. Kg5 {[%clk 0:00:02]}  Kg8 {[%clk 0:00:01]} 50. Kxg6 {[%clk 0:00:02]}  Rc6+ {[%clk 0:00:01]} 51. Kf5 {[%clk 0:00:02]}  Rb6 {[%clk 0:00:01]} 52. h5 {[%clk 0:00:01]}  b4 {[%clk 0:00:01]} 53. g5 {[%clk 0:00:02]}  b3 {[%clk 0:00:02]} 54. g6 {[%clk 0:00:03]}  b2 {[%clk 0:00:02]} 55. Rd8+ {[%clk 0:00:03]}  Kg7 {[%clk 0:00:01]} 56. Rd7+ {[%clk 0:00:04]}  Kg8 {[%clk 0:00:02]} 57. Rd8+ {[%clk 0:00:04]}  Kg7 {[%clk 0:00:02]} 58. h6+ {[%clk 0:00:04]}  Kxh6 {[%clk 0:00:02]} 59. Rh8+ {[%clk 0:00:05]}  Kg7 {[%clk 0:00:02]} 60. Rh7+ {[%clk 0:00:06]}  Kg8 {[%clk 0:00:02]} 61. g7 {[%clk 0:00:05]}  Kxh7 {[%clk 0:00:02]} 0-1


[Site "https://www.chess.com"]

[Event "Titled Tuesday Blitz July 25 Early 2023"]
[White "MateoReyes"]
[Black "Ncatt"]
[WhiteElo "2473"]
[BlackElo "2343"]
[Result "1-0"]
[Round "4"]
[TimeControl "180+2"]
[Date "2023.07.25"]
[WhiteClock "0:00:34"]
[BlackClock "0:00:15"]
[Board "171"]

1. Nf3 {[%clk 0:03:00]}  Nf6 {[%clk 0:02:57]} 2. d4 {[%clk 0:02:59]}  d5 {[%clk 0:02:57]} 3. c4 {[%clk 0:02:58]}  c6 {[%clk 0:02:58]} 4. Nc3 {[%clk 0:02:58]}  e6 {[%clk 0:02:58]} 5. Bg5 {[%clk 0:02:56]}  Nbd7 {[%clk 0:02:58]} 6. e3 {[%clk 0:02:56]}  Qa5 {[%clk 0:02:57]} 7. Bxf6 {[%clk 0:02:53]}  Nxf6 {[%clk 0:02:56]} 8. Be2 {[%clk 0:02:51]}  Be7 {[%clk 0:02:55]} 9. O-O {[%clk 0:02:50]}  dxc4 {[%clk 0:02:55]} 10. Bxc4 {[%clk 0:02:49]}  b5 {[%clk 0:02:56]} 11. Be2 {[%clk 0:02:47]}  b4 {[%clk 0:02:55]} 12. Nb1 {[%clk 0:02:43]}  O-O {[%clk 0:02:54]} 13. Nbd2 {[%clk 0:02:43]}  c5 {[%clk 0:02:49]} 14. Nc4 {[%clk 0:02:41]}  Qd8 {[%clk 0:02:47]} 15. Rc1 {[%clk 0:02:40]}  Bb7 {[%clk 0:02:45]} 16. Nfe5 {[%clk 0:02:37]}  Rc8 {[%clk 0:02:43]} 17. Bf3 {[%clk 0:02:34]}  Bxf3 {[%clk 0:02:42]} 18. Nxf3 {[%clk 0:02:15]}  Qd5 {[%clk 0:02:36]} 19. dxc5 {[%clk 0:02:09]}  Rxc5 {[%clk 0:02:34]} 20. Qxd5 {[%clk 0:02:08]}  Nxd5 {[%clk 0:02:34]} 21. Nce5 {[%clk 0:02:05]}  Rfc8 {[%clk 0:02:31]} 22. Rxc5 {[%clk 0:02:03]}  Rxc5 {[%clk 0:02:31]} 23. Nd4 {[%clk 0:02:02]}  g6 {[%clk 0:02:25]} 24. Nd3 {[%clk 0:02:01]}  Rc4 {[%clk 0:02:23]} 25. Rc1 {[%clk 0:01:51]}  Rxc1+ {[%clk 0:02:21]} 26. Nxc1 {[%clk 0:01:51]}  Bf6 {[%clk 0:02:21]} 27. Nd3 {[%clk 0:01:48]}  a5 {[%clk 0:02:19]} 28. Nc6 {[%clk 0:01:47]}  a4 {[%clk 0:02:18]} 29. Ncxb4 {[%clk 0:01:46]}  Nxb4 {[%clk 0:02:16]} 30. Nxb4 {[%clk 0:01:46]}  Bxb2 {[%clk 0:02:17]} 31. Nd3 {[%clk 0:01:45]}  Ba3 {[%clk 0:01:49]} 32. Kf1 {[%clk 0:01:45]}  Kf8 {[%clk 0:01:49]} 33. Ke2 {[%clk 0:01:45]}  Ke7 {[%clk 0:01:50]} 34. Ne5 {[%clk 0:01:40]}  f6 {[%clk 0:01:47]} 35. Nc4 {[%clk 0:01:40]}  Bc5 {[%clk 0:01:47]} 36. Kd3 {[%clk 0:01:37]}  Kd7 {[%clk 0:01:45]} 37. Nd2 {[%clk 0:01:25]}  Kc6 {[%clk 0:01:44]} 38. Kc4 {[%clk 0:01:26]}  f5 {[%clk 0:01:41]} 39. Nb1 {[%clk 0:01:20]}  Bd6 {[%clk 0:01:35]} 40. h3 {[%clk 0:01:18]}  Bh2 {[%clk 0:01:33]} 41. f3 {[%clk 0:01:13]}  e5 {[%clk 0:01:29]} 42. e4 {[%clk 0:01:13]}  h5 {[%clk 0:01:28]} 43. Nc3 {[%clk 0:01:12]}  fxe4 {[%clk 0:01:23]} 44. fxe4 {[%clk 0:01:11]}  a3 {[%clk 0:01:20]} 45. Nb1 {[%clk 0:01:09]}  g5 {[%clk 0:01:13]} 46. Nxa3 {[%clk 0:01:09]}  g4 {[%clk 0:01:12]} 47. Nc2 {[%clk 0:01:07]}  Bf4 {[%clk 0:01:10]} 48. Nb4+ {[%clk 0:01:05]}  Kd6 {[%clk 0:01:08]} 49. Nd5 {[%clk 0:01:01]}  Ke6 {[%clk 0:01:04]} 50. a4 {[%clk 0:01:00]}  gxh3 {[%clk 0:00:48]} 51. gxh3 {[%clk 0:00:59]}  Kd6 {[%clk 0:00:45]} 52. Kb5 {[%clk 0:00:56]}  Bg3 {[%clk 0:00:34]} 53. a5 {[%clk 0:00:55]}  Bf2 {[%clk 0:00:27]} 54. Nb6 {[%clk 0:00:49]}  Kc7 {[%clk 0:00:25]} 55. Nd5+ {[%clk 0:00:43]}  Kb7 {[%clk 0:00:24]} 56. a6+ {[%clk 0:00:40]}  Ka7 {[%clk 0:00:24]} 57. Nb4 {[%clk 0:00:40]}  Bg3 {[%clk 0:00:20]} 58. Nc6+ {[%clk 0:00:40]}  Ka8 {[%clk 0:00:20]} 59. Kc5 {[%clk 0:00:40]}  Bf4 {[%clk 0:00:16]} 60. Kd5 {[%clk 0:00:40]}  Bg3 {[%clk 0:00:16]} 61. Nxe5 {[%clk 0:00:37]}  Ka7 {[%clk 0:00:16]} 62. Ng6 {[%clk 0:00:34]}  Kxa6 {[%clk 0:00:16]} 63. e5 {[%clk 0:00:34]}  Be1 {[%clk 0:00:14]} 64. e6 {[%clk 0:00:33]}  Bb4 {[%clk 0:00:14]} 65. e7 {[%clk 0:00:34]}  Bxe7 {[%clk 0:00:15]} 66. Nxe7 {[%clk 0:00:34]} 1-0


[Site "https://www.chess.com"]